[Event "Titled Tuesday Blitz May 4 2021"]
[White "Chernomordik, Pavel"]
[Black "Chen, Alex"]
[WhiteFideId "2804530"]
[BlackFideId "30929652"]
[WhiteElo "2299"]
[BlackElo "2054"]
[Result "1-0"]
[Round "02"]
[TimeControl "180+1"]
[Date "2021.05.04"]
[WhiteClock "0:00:32"]
[BlackClock "0:00:43"]

1. e4 {[%clk 0:03:00]}  c5 {[%clk 0:03:00]} 2. Nc3 {[%clk 0:03:00]}  Nc6 {[%clk 0:03:00]} 3. Bb5 {[%clk 0:02:59]}  Nd4 {[%clk 0:02:58]} 4. Bc4 {[%clk 0:02:58]}  g6 {[%clk 0:02:59]} 5. Nge2 {[%clk 0:02:58]}  Bg7 {[%clk 0:02:59]} 6. Nxd4 {[%clk 0:02:57]}  cxd4 {[%clk 0:02:58]} 7. Qf3 {[%clk 0:02:57]}  Nh6 {[%clk 0:02:52]} 8. Ne2 {[%clk 0:02:55]}  O-O {[%clk 0:02:51]} 9. h3 {[%clk 0:02:50]}  e6 {[%clk 0:02:34]} 10. g4 {[%clk 0:02:44]}  f5 {[%clk 0:02:26]} 11. exf5 {[%clk 0:02:32]}  d5 {[%clk 0:02:22]} 12. Bb3 {[%clk 0:02:26]}  gxf5 {[%clk 0:02:18]} 13. g5 {[%clk 0:02:19]}  Qxg5 {[%clk 0:02:11]} 14. d3 {[%clk 0:02:19]}  Qf6 {[%clk 0:02:09]} 15. Rg1 {[%clk 0:02:17]}  Kh8 {[%clk 0:02:09]} 16. Bg5 {[%clk 0:02:16]}  Qf7 {[%clk 0:02:07]} 17. Nf4 {[%clk 0:02:09]}  Ng8 {[%clk 0:01:58]} 18. O-O-O {[%clk 0:02:05]}  Nf6 {[%clk 0:01:50]} 19. Rde1 {[%clk 0:02:01]}  Bd7 {[%clk 0:01:49]} 20. Bh4 {[%clk 0:01:47]}  a5 {[%clk 0:01:47]} 21. a3 {[%clk 0:01:45]}  a4 {[%clk 0:01:47]} 22. Ba2 {[%clk 0:01:44]}  Rae8 {[%clk 0:01:45]} 23. Qg3 {[%clk 0:01:31]}  Rg8 {[%clk 0:01:38]} 24. Qg2 {[%clk 0:01:18]}  Bh6 {[%clk 0:01:34]} 25. Qf3 {[%clk 0:01:08]}  e5 {[%clk 0:01:32]} 26. Rxg8+ {[%clk 0:01:04]}  Nxg8 {[%clk 0:01:29]} 27. Bxd5 {[%clk 0:01:01]}  Bxf4+ {[%clk 0:01:21]} 28. Kb1 {[%clk 0:00:53]}  Qf8 {[%clk 0:01:15]} 29. Bxg8 {[%clk 0:00:42]}  Kxg8 {[%clk 0:01:12]} 30. Rg1+ {[%clk 0:00:41]}  Kh8 {[%clk 0:01:03]} 31. Qxb7 {[%clk 0:00:39]}  Rd8 {[%clk 0:00:44]} 32. Bxd8 {[%clk 0:00:33]}  Qxd8 {[%clk 0:00:44]} 33. Qd5 {[%clk 0:00:33]}  Qe7 {[%clk 0:00:43]} 34. Qg8# {[%clk 0:00:32]} 1-0


[Site "https://www.chess.com"]

[Event "Titled Tuesday Blitz May 4 2021"]
[White "Christiansen, Johan-Sebastian"]
[Black "Havanecz, Bianka"]
[WhiteFideId "1512668"]
[BlackFideId "704814"]
[WhiteElo "2593"]
[BlackElo "2348"]
[Result "1-0"]
[Round "02"]
[TimeControl "180+1"]
[Date "2021.05.04"]
[WhiteClock "0:00:55"]
[BlackClock "0:00:06"]

1. e4 {[%clk 0:03:00]}  c6 {[%clk 0:02:54]} 2. d4 {[%clk 0:03:00]}  d5 {[%clk 0:02:54]} 3. Nd2 {[%clk 0:03:01]}  dxe4 {[%clk 0:02:54]} 4. Nxe4 {[%clk 0:03:02]}  Nf6 {[%clk 0:02:54]} 5. Nxf6+ {[%clk 0:03:02]}  exf6 {[%clk 0:02:55]} 6. c3 {[%clk 0:03:03]}  Bd6 {[%clk 0:02:55]} 7. Bd3 {[%clk 0:03:04]}  O-O {[%clk 0:02:55]} 8. Ne2 {[%clk 0:03:05]}  Re8 {[%clk 0:02:55]} 9. Qc2 {[%clk 0:03:06]}  h5 {[%clk 0:02:55]} 10. Bd2 {[%clk 0:03:06]}  Nd7 {[%clk 0:02:54]} 11. O-O {[%clk 0:03:06]}  Nf8 {[%clk 0:02:53]} 12. Rae1 {[%clk 0:03:06]}  h4 {[%clk 0:02:48]} 13. h3 {[%clk 0:03:03]}  a5 {[%clk 0:02:41]} 14. Nf4 {[%clk 0:03:02]}  Rxe1 {[%clk 0:02:31]} 15. Rxe1 {[%clk 0:03:00]}  a4 {[%clk 0:02:31]} 16. Qd1 {[%clk 0:02:50]}  Qc7 {[%clk 0:01:55]} 17. Qf3 {[%clk 0:01:30]}  Be6 {[%clk 0:00:36]} 18. c4 {[%clk 0:01:27]}  Re8 {[%clk 0:00:23]} 19. Nh5 {[%clk 0:01:21]}  Nd7 {[%clk 0:00:11]} 20. d5 {[%clk 0:01:18]}  cxd5 {[%clk 0:00:10]} 21. cxd5 {[%clk 0:01:18]}  Ne5 {[%clk 0:00:11]} 22. Rxe5 {[%clk 0:01:13]}  Bxe5 {[%clk 0:00:12]} 23. dxe6 {[%clk 0:01:13]}  Rxe6 {[%clk 0:00:12]} 24. Qg4 {[%clk 0:01:08]}  g6 {[%clk 0:00:10]} 25. Bxg6 {[%clk 0:01:09]}  Bh2+ {[%clk 0:00:09]} 26. Kh1 {[%clk 0:01:04]}  Kf8 {[%clk 0:00:08]} 27. Bf5 {[%clk 0:01:01]}  Rd6 {[%clk 0:00:07]} 28. Qg7+ {[%clk 0:01:00]}  Ke7 {[%clk 0:00:07]} 29. Bb4 {[%clk 0:00:54]}  Qc1+ {[%clk 0:00:06]} 30. Kxh2 {[%clk 0:00:55]} 1-0


[Site "https://www.chess.com"]

[Event "Titled Tuesday Blitz May 4 2021"]
[White "Costachi, Mihnea"]
[Black "Balaji, Aaravamudhan"]
[WhiteFideId "1217518"]
[BlackFideId "436224"]
[WhiteElo "2479"]
[BlackElo "2085"]
[Result "1-0"]
[Round "02"]
[TimeControl "180+1"]
[Date "2021.05.04"]
[WhiteClock "0:02:14"]
[BlackClock "0:00:02"]

1. d4 {[%clk 0:03:00]}  Nf6 {[%clk 0:02:59]} 2. c4 {[%clk 0:03:00]}  g6 {[%clk 0:03:00]} 3. Nc3 {[%clk 0:03:00]}  Bg7 {[%clk 0:03:00]} 4. e4 {[%clk 0:03:01]}  d6 {[%clk 0:03:01]} 5. Be2 {[%clk 0:03:01]}  O-O {[%clk 0:03:02]} 6. Bg5 {[%clk 0:03:02]}  c5 {[%clk 0:02:56]} 7. d5 {[%clk 0:03:02]}  e6 {[%clk 0:02:57]} 8. Nf3 {[%clk 0:03:03]}  exd5 {[%clk 0:02:57]} 9. cxd5 {[%clk 0:03:04]}  Re8 {[%clk 0:02:55]} 10. Nd2 {[%clk 0:03:04]}  a6 {[%clk 0:02:55]} 11. a4 {[%clk 0:03:05]}  h6 {[%clk 0:02:55]} 12. Be3 {[%clk 0:03:05]}  Nbd7 {[%clk 0:02:52]} 13. O-O {[%clk 0:03:06]}  Ne5 {[%clk 0:02:52]} 14. h3 {[%clk 0:03:06]}  g5 {[%clk 0:02:47]} 15. f4 {[%clk 0:03:06]}  gxf4 {[%clk 0:02:46]} 16. Bxf4 {[%clk 0:03:07]}  Ng6 {[%clk 0:02:29]} 17. Bg3 {[%clk 0:03:07]}  Rb8 {[%clk 0:02:17]} 18. Kh1 {[%clk 0:03:05]}  Ne5 {[%clk 0:01:49]} 19. Qe1 {[%clk 0:03:00]}  Qb6 {[%clk 0:01:32]} 20. Bxe5 {[%clk 0:02:58]}  dxe5 {[%clk 0:01:32]} 21. Nc4 {[%clk 0:02:58]}  Qd8 {[%clk 0:01:31]} 22. a5 {[%clk 0:02:59]}  Bd7 {[%clk 0:01:02]} 23. Qg3 {[%clk 0:02:58]}  Nh7 {[%clk 0:00:53]} 24. Nd6 {[%clk 0:02:52]}  Rf8 {[%clk 0:00:52]} 25. Bh5 {[%clk 0:02:52]}  f5 {[%clk 0:00:29]} 26. Nxf5 {[%clk 0:02:49]}  Bxf5 {[%clk 0:00:27]} 27. Rxf5 {[%clk 0:02:50]}  Rxf5 {[%clk 0:00:27]} 28. exf5 {[%clk 0:02:51]}  Qg5 {[%clk 0:00:26]} 29. Qxg5 {[%clk 0:02:48]}  Nxg5 {[%clk 0:00:27]} 30. h4 {[%clk 0:02:44]}  Nh7 {[%clk 0:00:19]} 31. Bf3 {[%clk 0:02:39]}  Nf6 {[%clk 0:00:19]} 32. d6 {[%clk 0:02:39]}  Rd8 {[%clk 0:00:17]} 33. Rd1 {[%clk 0:02:40]}  e4 {[%clk 0:00:14]} 34. Nxe4 {[%clk 0:02:32]}  Nxe4 {[%clk 0:00:14]} 35. Bxe4 {[%clk 0:02:33]}  Bxb2 {[%clk 0:00:14]} 36. Bxb7 {[%clk 0:02:33]}  Bd4 {[%clk 0:00:11]} 37. Bxa6 {[%clk 0:02:28]}  Rxd6 {[%clk 0:00:11]} 38. Bc4+ {[%clk 0:02:28]}  Kg7 {[%clk 0:00:11]} 39. a6 {[%clk 0:02:29]}  Rd7 {[%clk 0:00:11]} 40. Rb1 {[%clk 0:02:26]}  Be5 {[%clk 0:00:04]} 41. Rb7 {[%clk 0:02:19]}  Rxb7 {[%clk 0:00:03]} 42. axb7 {[%clk 0:02:20]}  Kf6 {[%clk 0:00:04]} 43. g4 {[%clk 0:02:21]}  Bg3 {[%clk 0:00:04]} 44. Kg2 {[%clk 0:02:20]}  Bb8 {[%clk 0:00:04]} 45. Bd3 {[%clk 0:02:17]}  Ke5 {[%clk 0:00:04]} 46. g5 {[%clk 0:02:15]}  hxg5 {[%clk 0:00:04]} 47. hxg5 {[%clk 0:02:16]}  Kd4 {[%clk 0:00:02]} 48. g6 {[%clk 0:02:14]} 1-0


[Site "https://www.chess.com"]

[Event "Titled Tuesday Blitz May 4 2021"]
[White "Daniel, Damian"]
[Black "Rios Parra, Alejandro"]
[WhiteFideId "1183621"]
[BlackFideId "4400348"]
[WhiteElo "2055"]
[BlackElo "2188"]
[Result "1-0"]
[Round "02"]
[TimeControl "180+1"]
[Date "2021.05.04"]
[WhiteClock "0:00:49"]
[BlackClock "0:00:25"]

1. d4 {[%clk 0:02:56]}  Nf6 {[%clk 0:02:26]} 2. c4 {[%clk 0:02:56]}  e6 {[%clk 0:02:25]} 3. g3 {[%clk 0:02:55]}  c5 {[%clk 0:02:23]} 4. d5 {[%clk 0:02:55]}  exd5 {[%clk 0:02:22]} 5. cxd5 {[%clk 0:02:56]}  d6 {[%clk 0:02:21]} 6. Nc3 {[%clk 0:02:55]}  g6 {[%clk 0:02:21]} 7. Bg2 {[%clk 0:02:55]}  Bg7 {[%clk 0:02:21]} 8. Nf3 {[%clk 0:02:56]}  O-O {[%clk 0:02:21]} 9. O-O {[%clk 0:02:56]}  a6 {[%clk 0:02:21]} 10. a4 {[%clk 0:02:55]}  Nbd7 {[%clk 0:02:21]} 11. Bf4 {[%clk 0:02:51]}  Qc7 {[%clk 0:02:19]} 12. Qd2 {[%clk 0:02:43]}  Rb8 {[%clk 0:02:18]} 13. Rac1 {[%clk 0:02:26]}  Re8 {[%clk 0:02:11]} 14. b4 {[%clk 0:02:10]}  Nh5 {[%clk 0:01:58]} 15. Be3 {[%clk 0:01:40]}  b6 {[%clk 0:01:41]} 16. a5 {[%clk 0:00:58]}  Rxe3 {[%clk 0:00:39]} 17. Qxe3 {[%clk 0:00:54]}  bxa5 {[%clk 0:00:35]} 18. bxc5 {[%clk 0:00:54]}  Nxc5 {[%clk 0:00:34]} 19. Ne4 {[%clk 0:00:50]}  Rb5 {[%clk 0:00:25]} 20. Nd4 {[%clk 0:00:49]} 1-0


[Site "https://www.chess.com"]

[Event "Titled Tuesday Blitz May 4 2021"]
[White "DieHardCuban"]
[Black "Bonte, Andrei-Mihai"]
[BlackFideId "1210297"]
[WhiteElo "2420"]
[BlackElo "2200"]
[Result "0-1"]
[Round "02"]
[TimeControl "180+1"]
[Date "2021.05.04"]
[WhiteClock "0:00:02"]
[BlackClock "0:00:21"]

1. d4 {[%clk 0:03:00]}  Nf6 {[%clk 0:02:58]} 2. c4 {[%clk 0:03:01]}  e6 {[%clk 0:02:58]} 3. Nc3 {[%clk 0:03:01]}  Bb4 {[%clk 0:02:57]} 4. e3 {[%clk 0:03:01]}  d5 {[%clk 0:02:56]} 5. Nf3 {[%clk 0:02:59]}  O-O {[%clk 0:02:54]} 6. Bd2 {[%clk 0:02:59]}  c5 {[%clk 0:02:25]} 7. a3 {[%clk 0:02:54]}  Bxc3 {[%clk 0:02:22]} 8. Bxc3 {[%clk 0:02:54]}  Ne4 {[%clk 0:02:18]} 9. Rc1 {[%clk 0:02:21]}  Nxc3 {[%clk 0:02:13]} 10. Rxc3 {[%clk 0:02:17]}  cxd4 {[%clk 0:02:13]} 11. exd4 {[%clk 0:02:12]}  b6 {[%clk 0:02:02]} 12. c5 {[%clk 0:02:06]}  Bb7 {[%clk 0:01:58]} 13. Bd3 {[%clk 0:02:01]}  bxc5 {[%clk 0:01:53]} 14. Rxc5 {[%clk 0:02:02]}  Nd7 {[%clk 0:01:52]} 15. Rc2 {[%clk 0:01:49]}  h6 {[%clk 0:01:36]} 16. O-O {[%clk 0:01:47]}  Qb6 {[%clk 0:01:35]} 17. Qe2 {[%clk 0:01:30]}  Rfc8 {[%clk 0:01:32]} 18. Rfc1 {[%clk 0:01:29]}  Rxc2 {[%clk 0:01:31]} 19. Rxc2 {[%clk 0:01:30]}  a5 {[%clk 0:01:29]} 20. h3 {[%clk 0:01:20]}  Bc6 {[%clk 0:01:12]} 21. Ne5 {[%clk 0:01:09]}  Nxe5 {[%clk 0:01:10]} 22. Qxe5 {[%clk 0:01:10]}  Ba4 {[%clk 0:00:58]} 23. Rc7 {[%clk 0:00:46]}  Qxb2 {[%clk 0:00:52]} 24. Bg6 {[%clk 0:00:35]}  Be8 {[%clk 0:00:32]} 25. Bh5 {[%clk 0:00:04]}  Qxa3 {[%clk 0:00:28]} 26. Qf4 {[%clk 0:00:04]}  Qf8 {[%clk 0:00:22]} 27. Bd1 {[%clk 0:00:02]}  a4 {[%clk 0:00:21]} 0-1


[Site "https://www.chess.com"]

[Event "Titled Tuesday Blitz May 4 2021"]
[White "Dushyant Sharma"]
[Black "Toncheva, Nadya"]
[WhiteFideId "25065130"]
[BlackFideId "2924056"]
[WhiteElo "2019"]
[BlackElo "1920"]
[Result "1-0"]
[Round "02"]
[TimeControl "180+1"]
[Date "2021.05.04"]
[WhiteClock "0:01:02"]
[BlackClock "0:00:03"]

1. e4 {[%clk 0:03:00]}  e5 {[%clk 0:02:58]} 2. Nf3 {[%clk 0:03:01]}  Nc6 {[%clk 0:02:58]} 3. Nc3 {[%clk 0:02:59]}  Nf6 {[%clk 0:02:57]} 4. Bb5 {[%clk 0:02:59]}  Bc5 {[%clk 0:02:46]} 5. Nxe5 {[%clk 0:02:59]}  Nxe5 {[%clk 0:02:43]} 6. d4 {[%clk 0:02:59]}  Bd6 {[%clk 0:02:42]} 7. f4 {[%clk 0:02:58]}  Ng6 {[%clk 0:02:33]} 8. e5 {[%clk 0:02:58]}  Bb4 {[%clk 0:02:19]} 9. exf6 {[%clk 0:02:57]}  Qxf6 {[%clk 0:02:19]} 10. O-O {[%clk 0:02:57]}  O-O {[%clk 0:02:19]} 11. Kh1 {[%clk 0:02:42]}  Bxc3 {[%clk 0:02:18]} 12. bxc3 {[%clk 0:02:42]}  c6 {[%clk 0:02:17]} 13. Bd3 {[%clk 0:02:41]}  d5 {[%clk 0:02:15]} 14. f5 {[%clk 0:02:41]}  Ne7 {[%clk 0:02:13]} 15. Qg4 {[%clk 0:02:41]}  h6 {[%clk 0:02:07]} 16. Ba3 {[%clk 0:02:40]}  Re8 {[%clk 0:02:04]} 17. Rae1 {[%clk 0:02:39]}  Bd7 {[%clk 0:02:00]} 18. Re3 {[%clk 0:02:22]}  Nxf5 {[%clk 0:01:51]} 19. Ref3 {[%clk 0:01:58]}  g6 {[%clk 0:01:28]} 20. h3 {[%clk 0:01:54]}  Kh7 {[%clk 0:01:19]} 21. Qf4 {[%clk 0:01:43]}  Qg5 {[%clk 0:00:24]} 22. Qxg5 {[%clk 0:01:32]}  hxg5 {[%clk 0:00:25]} 23. g4 {[%clk 0:01:33]}  Nh6 {[%clk 0:00:25]} 24. Rxf7+ {[%clk 0:01:33]}  Nxf7 {[%clk 0:00:23]} 25. Rxf7+ {[%clk 0:01:33]}  Kh6 {[%clk 0:00:22]} 26. Rxd7 {[%clk 0:01:32]}  Re1+ {[%clk 0:00:22]} 27. Kg2 {[%clk 0:01:32]}  b5 {[%clk 0:00:17]} 28. Rd6 {[%clk 0:01:31]}  Rg8 {[%clk 0:00:17]} 29. Rxc6 {[%clk 0:01:30]}  Ra1 {[%clk 0:00:15]} 30. Bxb5 {[%clk 0:01:28]}  Rxa2 {[%clk 0:00:15]} 31. Bb4 {[%clk 0:01:28]}  Rxc2+ {[%clk 0:00:14]} 32. Kg3 {[%clk 0:01:28]}  Rb8 {[%clk 0:00:07]} 33. Bd3 {[%clk 0:01:27]}  Rd2 {[%clk 0:00:06]} 34. Bxg6 {[%clk 0:01:19]}  Kg7 {[%clk 0:00:06]} 35. Bf5 {[%clk 0:01:18]}  Re8 {[%clk 0:00:06]} 36. Rc7+ {[%clk 0:01:12]}  Kf6 {[%clk 0:00:06]} 37. Rc6+ {[%clk 0:01:10]}  Kg7 {[%clk 0:00:06]} 38. Re6 {[%clk 0:01:08]}  Rxe6 {[%clk 0:00:05]} 39. Bxe6 {[%clk 0:01:09]}  Ra2 {[%clk 0:00:05]} 40. Bxd5 {[%clk 0:01:08]}  Re2 {[%clk 0:00:03]} 41. Kf3 {[%clk 0:01:07]}  Rh2 {[%clk 0:00:03]} 42. Kg3 {[%clk 0:01:06]}  Re2 {[%clk 0:00:04]} 43. c4 {[%clk 0:01:06]}  Re3+ {[%clk 0:00:03]} 44. Bf3 {[%clk 0:01:07]}  Rb3 {[%clk 0:00:03]} 45. Bd6 {[%clk 0:01:06]}  a5 {[%clk 0:00:03]} 46. Be5+ {[%clk 0:01:07]}  Kf7 {[%clk 0:00:03]} 47. c5 {[%clk 0:01:08]}  a4 {[%clk 0:00:03]} 48. Kg2 {[%clk 0:01:06]}  Rb2+ {[%clk 0:00:03]} 49. Kg3 {[%clk 0:01:06]}  a3 {[%clk 0:00:03]} 50. d5 {[%clk 0:01:07]}  Rc2 {[%clk 0:00:02]} 51. c6 {[%clk 0:01:06]}  a2 {[%clk 0:00:02]} 52. d6 {[%clk 0:01:05]}  Ke6 {[%clk 0:00:02]} 53. d7 {[%clk 0:01:04]}  Kxe5 {[%clk 0:00:01]} 54. d8=Q {[%clk 0:01:01]}  a1=Q {[%clk 0:00:02]} 55. Qh8+ {[%clk 0:01:02]}  Kd6 {[%clk 0:00:03]} 56. Qxa1 {[%clk 0:01:02]} 1-0


[Site "https://www.chess.com"]

[Event "Titled Tuesday Blitz May 4 2021"]
[White "Eggleston, Thomas A"]
[Black "Przybylski, Wojciech"]
[WhiteFideId "412139"]
[BlackFideId "1117599"]
[WhiteElo "2174"]
[BlackElo "2317"]
[Result "0-1"]
[Round "02"]
[TimeControl "180+1"]
[Date "2021.05.04"]
[WhiteClock "0:00:41"]
[BlackClock "0:00:20"]

1. e4 {[%clk 0:02:59]}  e5 {[%clk 0:02:54]} 2. f4 {[%clk 0:02:59]}  exf4 {[%clk 0:02:47]} 3. Bc4 {[%clk 0:02:59]}  Nf6 {[%clk 0:02:42]} 4. Nc3 {[%clk 0:02:58]}  c6 {[%clk 0:02:36]} 5. d4 {[%clk 0:02:58]}  d5 {[%clk 0:02:36]} 6. exd5 {[%clk 0:02:59]}  Nxd5 {[%clk 0:02:35]} 7. Nxd5 {[%clk 0:02:52]}  cxd5 {[%clk 0:02:36]} 8. Bb5+ {[%clk 0:02:52]}  Nc6 {[%clk 0:02:30]} 9. Qe2+ {[%clk 0:02:52]}  Be6 {[%clk 0:02:28]} 10. Bxf4 {[%clk 0:02:51]}  Be7 {[%clk 0:02:28]} 11. Nf3 {[%clk 0:02:50]}  O-O {[%clk 0:02:27]} 12. O-O {[%clk 0:02:46]}  Rc8 {[%clk 0:02:22]} 13. c3 {[%clk 0:02:44]}  a6 {[%clk 0:02:06]} 14. Bd3 {[%clk 0:02:42]}  b5 {[%clk 0:02:06]} 15. a3 {[%clk 0:02:35]}  Na5 {[%clk 0:02:05]} 16. Rae1 {[%clk 0:02:32]}  Nc4 {[%clk 0:01:59]} 17. Qf2 {[%clk 0:02:26]}  Bf6 {[%clk 0:01:48]} 18. h4 {[%clk 0:02:25]}  h6 {[%clk 0:01:45]} 19. Bb1 {[%clk 0:02:18]}  Nd6 {[%clk 0:01:38]} 20. Bxd6 {[%clk 0:02:06]}  Qxd6 {[%clk 0:01:37]} 21. Ne5 {[%clk 0:02:06]}  Bxe5 {[%clk 0:00:33]} 22. dxe5 {[%clk 0:02:05]}  Qc5 {[%clk 0:00:33]} 23. Re3 {[%clk 0:02:05]}  d4 {[%clk 0:00:31]} 24. cxd4 {[%clk 0:02:04]}  Qxd4 {[%clk 0:00:30]} 25. Rfe1 {[%clk 0:01:57]}  Rfd8 {[%clk 0:00:29]} 26. Kh2 {[%clk 0:01:49]}  Qg4 {[%clk 0:00:28]} 27. Re4 {[%clk 0:01:41]}  Qh5 {[%clk 0:00:28]} 28. R4e2 {[%clk 0:01:15]}  Rc4 {[%clk 0:00:25]} 29. g3 {[%clk 0:01:14]}  Qg4 {[%clk 0:00:23]} 30. Rd2 {[%clk 0:00:44]}  Rxd2 {[%clk 0:00:20]} 31. Qxd2 {[%clk 0:00:44]}  Qh3+ {[%clk 0:00:20]} 32. Kg1 {[%clk 0:00:42]}  Qxg3+ {[%clk 0:00:20]} 33. Qg2 {[%clk 0:00:42]}  Qxe1+ {[%clk 0:00:20]} 34. Kh2 {[%clk 0:00:41]}  Rxh4+ {[%clk 0:00:20]} 0-1


[Site "https://www.chess.com"]

[Event "Titled Tuesday Blitz May 4 2021"]
[White "Elgersma, Onno"]
[Black "Chasin, Nico"]
[WhiteFideId "1053531"]
[BlackFideId "30908477"]
[WhiteElo "2473"]
[BlackElo "2135"]
[Result "0-1"]
[Round "02"]
[TimeControl "180+1"]
[Date "2021.05.04"]
[WhiteClock "0:00:02"]
[BlackClock "0:01:32"]

1. Nf3 {[%clk 0:03:00]}  Nf6 {[%clk 0:02:58]} 2. d4 {[%clk 0:02:57]}  e6 {[%clk 0:02:57]} 3. Bg5 {[%clk 0:02:58]}  c5 {[%clk 0:02:56]} 4. e3 {[%clk 0:02:58]}  Be7 {[%clk 0:02:53]} 5. Nbd2 {[%clk 0:02:57]}  b6 {[%clk 0:02:53]} 6. Bd3 {[%clk 0:02:57]}  h6 {[%clk 0:02:52]} 7. Bh4 {[%clk 0:02:55]}  Bb7 {[%clk 0:02:52]} 8. c3 {[%clk 0:02:55]}  O-O {[%clk 0:02:53]} 9. O-O {[%clk 0:02:55]}  Nc6 {[%clk 0:02:50]} 10. a3 {[%clk 0:02:52]}  Rc8 {[%clk 0:02:50]} 11. e4 {[%clk 0:02:44]}  d5 {[%clk 0:02:46]} 12. e5 {[%clk 0:02:43]}  Nd7 {[%clk 0:02:46]} 13. Bg3 {[%clk 0:02:40]}  Ndb8 {[%clk 0:02:29]} 14. b4 {[%clk 0:02:38]}  cxd4 {[%clk 0:02:26]} 15. cxd4 {[%clk 0:02:36]}  a5 {[%clk 0:02:21]} 16. b5 {[%clk 0:02:35]}  Na7 {[%clk 0:02:22]} 17. a4 {[%clk 0:02:35]}  Rc3 {[%clk 0:02:21]} 18. Qe2 {[%clk 0:02:35]}  Qc7 {[%clk 0:02:20]} 19. Nb1 {[%clk 0:02:18]}  Rb3 {[%clk 0:02:19]} 20. Ra2 {[%clk 0:02:05]}  Rc8 {[%clk 0:02:16]} 21. Rc2 {[%clk 0:02:03]}  Qd8 {[%clk 0:02:16]} 22. Rfc1 {[%clk 0:02:01]}  Rb4 {[%clk 0:02:13]} 23. Nc3 {[%clk 0:01:54]}  Rb3 {[%clk 0:02:04]} 24. h4 {[%clk 0:01:43]}  Ba3 {[%clk 0:02:02]} 25. Ra1 {[%clk 0:00:54]}  Rbxc3 {[%clk 0:01:55]} 26. Ng5 {[%clk 0:00:15]}  hxg5 {[%clk 0:01:37]} 27. hxg5 {[%clk 0:00:07]}  Bf8 {[%clk 0:01:35]} 28. Rxc3 {[%clk 0:00:03]}  Rxc3 {[%clk 0:01:34]} 29. g6 {[%clk 0:00:02]}  fxg6 {[%clk 0:01:33]} 30. Bxg6 {[%clk 0:00:02]}  Qg5 {[%clk 0:01:32]} 0-1


[Site "https://www.chess.com"]

[Event "Titled Tuesday Blitz May 4 2021"]
[White "Erden, Kadir"]
[Black "Triapishko, Alexandr"]
[WhiteFideId "6305776"]
[BlackFideId "14122286"]
[WhiteElo "2218"]
[BlackElo "2490"]
[Result "0-1"]
[Round "02"]
[TimeControl "180+1"]
[Date "2021.05.04"]
[WhiteClock "0:01:47"]
[BlackClock "0:01:38"]

1. d4 {[%clk 0:03:00]}  d5 {[%clk 0:02:48]} 2. c4 {[%clk 0:03:00]}  e5 {[%clk 0:02:33]} 3. dxe5 {[%clk 0:02:58]}  Ne7 {[%clk 0:02:32]} 4. cxd5 {[%clk 0:02:56]}  Qxd5 {[%clk 0:02:32]} 5. Qxd5 {[%clk 0:02:55]}  Nxd5 {[%clk 0:02:33]} 6. a3 {[%clk 0:02:54]}  Nc6 {[%clk 0:02:31]} 7. e4 {[%clk 0:02:55]}  Nb6 {[%clk 0:02:30]} 8. f4 {[%clk 0:02:54]}  Nd4 {[%clk 0:02:30]} 9. Kd1 {[%clk 0:02:06]}  Bg4+ {[%clk 0:02:10]} 10. Ne2 {[%clk 0:02:01]}  O-O-O {[%clk 0:01:59]} 11. Nd2 {[%clk 0:02:01]}  Nb3 {[%clk 0:01:52]} 12. Rb1 {[%clk 0:01:58]}  Nc4 {[%clk 0:01:51]} 13. Kc2 {[%clk 0:01:47]}  Ncxd2 {[%clk 0:01:38]} 0-1


[Site "https://www.chess.com"]

[Event "Titled Tuesday Blitz May 4 2021"]
[White "Escalante Ramirez, Brian Sebasti"]
[Black "Lopez Gracia, Fernando"]
[WhiteFideId "3819566"]
[BlackFideId "2207184"]
[WhiteElo "2193"]
[BlackElo "2336"]
[Result "1-0"]
[Round "02"]
[TimeControl "180+1"]
[Date "2021.05.04"]
[WhiteClock "0:00:52"]
[BlackClock "0:00:39"]

1. e4 {[%clk 0:03:00]}  e5 {[%clk 0:02:59]} 2. Nf3 {[%clk 0:02:57]}  Nc6 {[%clk 0:02:59]} 3. d4 {[%clk 0:02:58]}  exd4 {[%clk 0:02:59]} 4. Nxd4 {[%clk 0:02:59]}  Nf6 {[%clk 0:03:00]} 5. Nxc6 {[%clk 0:02:59]}  bxc6 {[%clk 0:03:00]} 6. Qe2 {[%clk 0:02:59]}  d5 {[%clk 0:02:58]} 7. exd5+ {[%clk 0:02:59]}  Be7 {[%clk 0:02:58]} 8. dxc6 {[%clk 0:02:59]}  O-O {[%clk 0:02:56]} 9. Nc3 {[%clk 0:02:59]}  Bg4 {[%clk 0:02:37]} 10. Qd3 {[%clk 0:02:58]}  Bd6 {[%clk 0:02:23]} 11. Be3 {[%clk 0:02:54]}  Qe8 {[%clk 0:02:15]} 12. Be2 {[%clk 0:02:53]}  Qxc6 {[%clk 0:02:13]} 13. O-O {[%clk 0:02:47]}  Rab8 {[%clk 0:01:58]} 14. Bxa7 {[%clk 0:02:19]}  Bxe2 {[%clk 0:01:52]} 15. Qxe2 {[%clk 0:01:53]}  Rxb2 {[%clk 0:01:51]} 16. Bd4 {[%clk 0:01:53]}  Bc5 {[%clk 0:01:46]} 17. Bxc5 {[%clk 0:01:50]}  Qxc5 {[%clk 0:01:47]} 18. Na4 {[%clk 0:01:50]}  Qb5 {[%clk 0:01:48]} 19. c4 {[%clk 0:01:37]}  Rxe2 {[%clk 0:01:27]} 20. cxb5 {[%clk 0:01:34]}  Ra8 {[%clk 0:01:27]} 21. Nc3 {[%clk 0:01:31]}  Rc2 {[%clk 0:01:27]} 22. Rfc1 {[%clk 0:01:29]}  Rxc1+ {[%clk 0:01:26]} 23. Rxc1 {[%clk 0:01:30]}  Kf8 {[%clk 0:01:23]} 24. a4 {[%clk 0:01:29]}  Ke7 {[%clk 0:01:23]} 25. f3 {[%clk 0:01:29]}  Kd6 {[%clk 0:01:17]} 26. Kf2 {[%clk 0:01:29]}  c6 {[%clk 0:01:04]} 27. bxc6 {[%clk 0:01:20]}  Kxc6 {[%clk 0:01:04]} 28. Ne4+ {[%clk 0:01:20]}  Kd7 {[%clk 0:01:03]} 29. Nxf6+ {[%clk 0:01:20]}  gxf6 {[%clk 0:01:04]} 30. Rc4 {[%clk 0:01:20]}  Rb8 {[%clk 0:01:04]} 31. Rc2 {[%clk 0:01:18]}  Ra8 {[%clk 0:00:59]} 32. Ra2 {[%clk 0:01:13]}  Ra5 {[%clk 0:00:59]} 33. Ke3 {[%clk 0:01:11]}  Kd6 {[%clk 0:00:59]} 34. Kd4 {[%clk 0:01:11]}  h5 {[%clk 0:00:59]} 35. Kc4 {[%clk 0:01:05]}  Kc6 {[%clk 0:00:59]} 36. Kb4 {[%clk 0:01:05]}  Rd5 {[%clk 0:00:56]} 37. a5 {[%clk 0:01:01]}  Rd4+ {[%clk 0:00:50]} 38. Kc3 {[%clk 0:01:00]}  Rd7 {[%clk 0:00:45]} 39. a6 {[%clk 0:01:00]}  Ra7 {[%clk 0:00:45]} 40. Kd4 {[%clk 0:00:59]}  Kd6 {[%clk 0:00:46]} 41. Ke4 {[%clk 0:00:56]}  Ke6 {[%clk 0:00:44]} 42. Kf4 {[%clk 0:00:55]}  f5 {[%clk 0:00:38]} 43. Kg5 {[%clk 0:00:56]}  f6+ {[%clk 0:00:39]} 44. Kxh5 {[%clk 0:00:52]} 1-0


[Site "https://www.chess.com"]